Workbook

Sheet Cover
B3: Excel + VBA
B4: für Controller
B7: Kapitel | C7: 3
B8: Thema | C8: Formeln und Funktionen
B10: Inhalt | C10: Suchfunktionen
B21: Version | C21: 1.0
B22: Autor | C22: Harald Nahrstedt
B23: Datum | C23: 2025-04-25
B26: Springer Verlag

Sheet VERWEIS
A1: Warengruppe | B1: Januar | C1: Februar | D1: März
A2: A | B2: 13450 | C2: 14560 | D2: 16340
A3: B | B3: 18230 | C3: 17450 | D3: 15980
A4: C | B4: 15440 | C4: 16210 | D4: 15390
A5: D | B5: 9870 | C5: 8730 | D5: 8920
A6: Gesamtumsatz
A8: Vektorversion
A9: Warengruppe | B9: A
A10: Monat | B10: Januar
A11: Umsatz | B11: 13450
A13: Matrixversion
A14: Warengruppe | B14: C
A15: Umsatz | B15: 15390

Sheet SVERWEIS
A1: Warengruppe | B1: Januar | C1: Februar | D1: März
A2: A | B2: 13450 | C2: 14560 | D2: 16340
A3: B | B3: 18230 | C3: 17450 | D3: 15980
A4: C | B4: 15440 | C4: 16210 | D4: 15390
A5: D | B5: 9870 | C5: 8730 | D5: 8920
A6: Gesamtumsatz | B6: =SUM(B2:B5) -> 56990 | C6: =SUM(C2:C5) -> 56950 | D6: =SUM(D2:D5) -> 56630
A8: Suche
A9: Warengruppe | B9: B
A10: Monatszahl | B10: 2
A11: Umsatz | B11: 17450

Sheet XVERWEIS
A1: Januar | B1: Februar | C1: März | D1: Warengruppe
A2: 13450 | B2: 14560 | C2: 16340 | D2: A
A3: 18230 | B3: 17450 | C3: 15980 | D3: B
A4: 15440 | B4: 16210 | C4: 15390 | D4: C
A5: 9870 | B5: 8730 | C5: 8920 | D5: D
A6: =SUM(A2:A5) -> 56990 | B6: =SUM(B2:B5) -> 56950 | C6: =SUM(C2:C5) -> 56630 | D6: Gesamtumsatz
A8: Suche
A9: WGruppe | B9: C
A10: Monat | B10: Januar | C10: Februar | D10: März
A11: Umsatz | B11: =_xlfn.XLOOKUP(WGruppe,Warengruppe,Umsatz) -> 

Sheet VERGLEICH
A1: Warengruppe | B1: Januar | C1: Februar | D1: März
A2: A | B2: 13450 | C2: 14560 | D2: 16340
A3: B | B3: 18230 | C3: 17450 | D3: 15980
A4: C | B4: 15440 | C4: 16210 | D4: 15390
A5: D | B5: 9870 | C5: 8730 | D5: 8920
A6: Gesamtumsatz | B6: =SUM(B2:B5) -> 56990 | C6: =SUM(C2:C5) -> 56950 | D6: =SUM(D2:D5) -> 56630
A8: Suche
A9: Monat | B9: März
A10: Warengruppe | B10: C
A11: Spalte Monat | B11: =MATCH(_xlfn.SINGLE(Monat),Monate,0) -> 
A12: Zeile WG | B12: =MATCH(WGruppe,Warengruppe,0) -> 
A13: Umsatz | B13: =INDEX(Matrix,ZeileW,SpalteM) -> 

Sheet INDEX
A1: Warengruppe | B1: Januar | C1: Februar | D1: März
A2: A | B2: 13450 | C2: 14560 | D2: 16340
A3: B | B3: 18230 | C3: 17450 | D3: 15980
A4: C | B4: 15440 | C4: 16210 | D4: 15390
A5: D | B5: 9870 | C5: 8730 | D5: 8920
A6: Gesamtumsatz | B6: =SUM(B2:B5) -> 56990 | C6: =SUM(C2:C5) -> 56950 | D6: =SUM(D2:D5) -> 56630
A8: Diagrammvorlage
A9: Monat | B9: 2
A11: A | B11: B | C11: C | D11: D
A12: =_xlfn.SINGLE(INDEX(Matrix,COLUMN(),_xlfn.SINGLE(Monat)+1)) -> 14560 | B12: =_xlfn.SINGLE(INDEX(Matrix,COLUMN(),_xlfn.SINGLE(Monat)+1)) -> 17450 | C12: =_xlfn.SINGLE(INDEX(Matrix,COLUMN(),_xlfn.SINGLE(Monat)+1)) -> 16210 | D12: =_xlfn.SINGLE(INDEX(Matrix,COLUMN(),_xlfn.SINGLE(Monat)+1)) -> 8730

Sheet INDEX_2
A1: Erlöse | B1: Januar | C1: Februar | D1: März
A2: Produkt 1 | B2: 24300 | C2: 22800 | D2: 25100
A3: Produkt 2 | B3: 29800 | C3: 27900 | D3: 26200
A4: Produkt 3 | B4: 15600 | C4: 26300 | D4: 27300
A5: Gesamterlöse | B5: =SUM(B2:B4) -> 69700 | C5: =SUM(C2:C4) -> 77000 | D5: =SUM(D2:D4) -> 78600
A7: Kosten | B7: Januar | C7: Februar | D7: März
A8: Produkt 1 | B8: 22300 | C8: 19800 | D8: 20100
A9: Produkt 2 | B9: 21000 | C9: 21200 | D9: 21000
A10: Produkt 3 | B10: 23700 | C10: 23900 | D10: 24500
A11: Gesamtkosten | B11: =SUM(B8:B10) -> 67000 | C11: =SUM(C8:C10) -> 64900 | D11: =SUM(D8:D10) -> 65600
A13: Gewinnanalyse
A14: Monatszahl | B14: 2
A15: Produktnummer | B15: 2
A17: Erlöse | B17: =INDEX(ErlöseTab,Produktnummer+1,Monatszahl+1,1) -> 
A18: Kosten | B18: =INDEX(KostenTab,Produktnummer+1,Monatszahl+1,1) -> 
A19: Gewinn | B19: =Erlöse-Kosten -> 

Sheet KGRÖSSTE
A1: Warengruppe | B1: Januar | C1: Februar | D1: März
A2: A | B2: 13450 | C2: 14560 | D2: 16340
A3: B | B3: 18230 | C3: 17450 | D3: 15980
A4: C | B4: 15440 | C4: 16210 | D4: 15390
A5: D | B5: 9870 | C5: 8730 | D5: 8920
A6: E | B6: 12700 | C6: 10300 | D6: 11600
A7: F | B7: 16700 | C7: 12500 | D7: 13300
A8: Gesamtumsatz | B8: =SUM(B2:B7) -> 86390 | C8: =SUM(C2:C7) -> 79750 | D8: =SUM(D2:D7) -> 81530
A10: größter Umsatz | B10: =LARGE(Matrix,1) -> 18230
A11: 2.größter Umsatz | B11: =LARGE(Matrix,2) -> 17450
A12: 3.größter Umsatz | B12: =LARGE(Matrix,3) -> 16340
A13: Top3 | B13: =SUM(B10:B12) -> 52020

Sheet KKLEINSTE
A1: Warengruppe | B1: Januar | C1: Februar | D1: März
A2: A | B2: 13450 | C2: 14560 | D2: 16340
A3: B | B3: 18230 | C3: 17450 | D3: 15980
A4: C | B4: 15440 | C4: 16210 | D4: 15390
A5: D | B5: 9870 | C5: 8730 | D5: 8920
A6: E | B6: 12700 | C6: 10300 | D6: 11600
A7: F | B7: 16700 | C7: 12500 | D7: 13300
A8: Gesamtumsatz | B8: =SUM(B2:B7) -> 86390 | C8: =SUM(C2:C7) -> 79750 | D8: =SUM(D2:D7) -> 81530
A10: niedrigster Umsatz | B10: =SMALL(Matrix,1) -> 8730
A11: 2.niedrigster Umsatz | B11: =SMALL(Matrix,2) -> 8920
A12: 3.niedrigster Umsatz | B12: =SMALL(Matrix,3) -> 9870
A13: Down3 | B13: =SUM(B10:B12) -> 27520
